Cogmind - Beta 16 @@@ ROGUE MODE // 2025.11.14 @ 17:04:22 Player: ChromeKnight Result: Destroyed by PO-65R(R) with Subdweller Laser Performance ------------- Evolutions (0) 0 Regions Visited (2) 400 Robots Destroyed (26) 130 Value Destroyed (553) 553 Prototype IDs (0) 0 Alien Tech Used (0) 0 Bonus (0) 0 TOTAL SCORE: 1083 Bonus ------- None Cogmind --------- Core Integrity 0/250 Matter 255/300 Energy 250/250 System Corruption 0% Temperature Cool (6) Movement Core (900) Ox17 Location -10/Subcaves Parts ------- > --- POWER (1) -------- Ion Engine > --- PROPULSION (2) --- (None) > --- UTILITY (2) ------ Improved Heat Sink High-capacity Storage Unit > --- WEAPON (2) ------- Particle Cannon Grenade Launcher > --- INVENTORY (20) --- Medium Storage Unit Shield Generator Hacking Suite Hacking Suite Particle Cannon Particle Cannon Particle Cannon Grenade Launcher Flail Peak State ------------ > --- POWER ------------ Ion Engine > --- PROPULSION ------- Light Treads Light Treads > --- UTILITY ---------- Improved Heat Sink Small Storage Unit > --- WEAPON ----------- Particle Cannon Particle Cannon > --- INVENTORY -------- Hacking Suite Particle Cannon Particle Cannon Grenade Launcher Grenade Launcher Flail [Rating: 12] Favorites ----------- Power Ion Engine Engine Ion Engine Propulsion Light Treads Treads Light Treads Utility Small Storage Unit Device Improved Heat Sink Storage Small Storage Unit Processor Targeting Computer Weapon Particle Cannon Energy Gun Medium Laser Energy Cannon Particle Cannon Ballistic Gun Assault Rifle Launcher Grenade Launcher Build | -11 -10 -10 ------- Run | Yrd Mat Sub Slots Evolved . | . . . Power . | . . . Propulsion . | . . . Utility . | . . . Weapon . | . . . Parts Attached 13 | 6 7 . Power 2 | 1 1 . Engine 2 | 1 1 . Core . | . . . Reactor . | . . . Propulsion 2 | 2 . . Treads 2 | 2 . . Leg . | . . . Wheel . | . . . Hover . | . . . Flight . | . . . Utility 4 | 1 3 . Device 1 | . 1 . Storage 2 | 1 1 . Processor 1 | . 1 . Hackware . | . . . Protection . | . . . Artifact . | . . . Weapon 5 | 2 3 . Energy Gun 1 | 1 . . Energy Cannon 2 | . 2 . Ballistic Gun 1 | 1 . . Ballistic Cannon . | . . . Launcher 1 | . 1 . Special Weapon . | . . . Impact Weapon . | . . . Slashing Weapon . | . . . Piercing Weapon . | . . . Special Melee Weapon . | . . . Unidentified Prototypes . | . . . Parts Lost 2 | . . 2 Power . | . . . Propulsion 2 | . . 2 Utility . | . . . Weapon . | . . . Highest Loss Streak 1 | . . 1 To Critical Strikes . | . . . Average Backups 5 | . 5 9 Power . | . . . Propulsion . | . . . Utility 2 | . 2 4 Weapon 3 | . 3 5 Tool/Special . | . . . Unused Backups 9 | . 1 8 Power . | . . . Propulsion . | . . . Utility 4 | . . 4 Weapon 5 | . 1 4 Tool/Special . | . . . Average Slot Usage (%) 92 | . 95 85 Engine 14 | . 14 14 Treads 24 | . 28 14 Device 7 | . 4 14 Storage 14 | . 14 14 Processor 3 | . 4 . Energy Gun 7 | . 9 . Energy Cannon 13 | . 9 27 Ballistic Gun 6 | . 8 . Peak Build Rating 12 | 6 12 12 Average Rating 8 | 4 8 10 On Entrance 6 | . 6 12 Avg Prop Armor Cover (%) . | . . . Naked Turns . | . . . Heaviest Build 54 | 14 54 54 Greatest Support 40 | 40 40 40 Greatest Overweight (x) 2 | . 1 2 Average Overweight (x) . | . . 1 Largest Inventory Capacity 20 | 8 20 20 Average Capacity 12 | 7 10 20 Most Carried 9 | . 9 9 Average Carried 5 | . 5 9 Final Capacity 20 | 8 20 20 Final Carried 9 | . 9 9 Class Distribution -------------------- 100% | Mutant Dominant Class ---------------- Mutant | -10/Materials Mutant | -10/Subcaves Resources | -11 -10 -10 ----------- Run | Yrd Mat Sub Matter Collected 447 | 210 237 . Remotely . | . . . Salvage Created 785 | . 600 185 Parts 45 | . 41 4 Haulers Intercepted 2 | . 2 . Recyclers Shooed . | . . . Parts Field Recycled . | . . . Retrieved Matter . | . . . Parts Self-Destructed 8 | . . 8 Prevented . | . . . Parts Restored . | . . . Kills | -11 -10 -10 ------- Run | Yrd Mat Sub Combat Hostiles Destroyed 18 | . 14 4 Guns 2 | . 2 . Cannons 10 | . 7 3 AOE 5 | . 5 . Classes Destroyed 9 | . 7 2 Worker 2 | . 2 . Builder 1 | . 1 . Hauler 2 | . 2 . Recycler 1 | . 1 . Operator 2 | . 2 . Swarmer 6 | . 6 . Grunt 9 | . 8 1 Sentry 1 | . . 1 Subdweller 2 | . . 2 Best Kill Streak 9 | . 9 2 Combat Bots Only 5 | . 5 2 Max Kills in Single Turn 3 | . 3 1 Gunslinging . | . . . Exploded 2 | . 2 . Melee . | . . . Uniques/NPCs Destroyed . | . . . Combat | -11 -10 -10 -------- Run | Yrd Mat Sub Hostile Shots Fired 83 | . 49 34 Missed 26 | . 12 14 Hits 57 | . 37 20 Projectile 57 | . 37 20 Critical Strikes 1 | . . 1 Damage Taken 860 | . 462 398 Core 265 | . 92 173 Absorbed by Shields . | . . . Core Remaining (%) 100 | 100 . . Volleys Fired 53 | . 40 13 Largest 2 | . 2 2 Hottest 136 | . 136 136 Shots Fired 96 | . 74 22 Gun 38 | . 38 . Cannon 48 | . 30 18 Launcher 10 | . 6 4 Special . | . . . Kinetic 19 | . 19 . Thermal 67 | . 49 18 Explosive 10 | . 6 4 Electromagnetic . | . . . Robot Hit Streak 14 | . 6 14 Robot Miss Streak 3 | . 3 1 Penetration Max . | . . . Secondary Targets . | . . . Shots Hit Robots 56 | . 41 15 Core Hits 38 | . 32 6 Critical Kills 1 | . . 1 Critical Parts Destroyed 1 | . 1 . Critical Strikes 2 | . 1 1 Meltdown 1 | . . 1 Destroy 1 | . 1 . Melee Attacks . | . . . Impact . | . . . Slashing . | . . . Piercing . | . . . Sneak Attacks . | . . . Combat Hostiles . | . . . Follow-up Attacks . | . . . Damage Inflicted 1857 | . 1255 602 Guns 301 | . 301 . Cannons 727 | . 411 316 Explosions 829 | . 543 286 Melee . | . . . Ramming . | . . . Kinetic 160 | . 160 . Thermal 868 | . 552 316 Explosive 829 | . 543 286 Electromagnetic . | . . . Impact . | . . . Slashing . | . . . Piercing . | . . . Highest Corruption . | . . . Average Corruption . | . . . Corruption Purged . | . . . Corruption Blocked . | . . . Overload Shots . | . . . Overflow Damage 20 | . 8 12 Projectiles 19 | . 7 12 Explosions 1 | . 1 . Melee . | . . . Knockbacks . | . . . Impact . | . . . Kinetic . | . . . Secondary . | . . . Self-Inflicted Damage 14 | . 14 . Shots 1 | . 1 . Rammed . | . . . Targets Rammed . | . . . Kicked . | . . . Crushed . | . . . Highest Temperature 228 | . 228 . Average Temperature 91 | . 91 . Received Heat Transfer 288 | . 219 69 Siege Activations . | . . . Martial Activations . | . . . Shielding Activations . | . . . Robots Disrupted . | . . . Combat Hostiles . | . . . Robots Corrupted . | . . . Combat Hostiles . | . . . Parts Fried . | . . . Impact Corruptions . | . . . Robots Melted 1 | . . 1 Combat Hostiles 1 | . . 1 Parts Melted 3 | . . 3 Heat Transferred 1665 | . 1110 555 Parts Sabotaged . | . . . Parts Stolen . | . . . Parts Stripped . | . . . Power Chain Reactions . | . . . Alert | -11 -10 -10 ------- Run | Yrd Mat Sub Maximum Alert Level 1 | . 1 . Low Security (%) 73 | 100 72 . Level 1 26 | . 27 . Level 2 . | . . . Level 3 . | . . . Level 4 . | . . . Level 5 . | . . . High Security . | . . . Max Security . | . . . Peak Influence 276 | . 276 . Initial . | . . . Average 78 | . 82 . Influence Increases 488 | . 448 40 Destroy 0b10 Robot/C 320 | . 280 40 Destroy 0b10 Robot/NC 40 | . 40 . Destroy Leader 54 | . 54 . Successful Hack 10 | . 10 . Destroy Structure 34 | . 34 . Lose Combat Pursuer 30 | . 30 . Influence Decreases 488 | . 232 256 Entered New Map 104 | . . 104 Time Decay 374 | . 232 142 Lost Part 10 | . . 10 Squads Dispatched 3 | . 3 . Investigation 1 | . 1 . Extermination . | . . . Reinforcement 2 | . 2 . Assault . | . . . Garrison . | . . . Intercept . | . . . Searches Triggered . | . . . Construction Impeded . | . . . Haulers Reinforced . | . . . Active Scanning Responses . | . . . Cargo Convoy Interrupts . | . . . Stealth | -11 -10 -10 --------- Run | Yrd Mat Sub Distress Signals 1 | . 1 . Communications Jammed . | . . . Distress Signals . | . . . Times Spotted 26 | . 20 6 Peak Tracking Total 3 | . 3 2 Tactical Retreats 1 | . 1 . Traps | -11 -10 -10 ------- Run | Yrd Mat Sub Traps Triggered 1 | . 1 . Indirectly . | . . . Trap Hack Attempts . | . . . Triggered . | . . . Disarmed . | . . . Reprogrammed . | . . . Reused . | . . . Traps Extracted . | . . . Installed . | . . . Triggered . | . . . Machines | -11 -10 -10 ---------- Run | Yrd Mat Sub Machines Disabled . | . . . Max in Single Turn . | . . . Machines Repaired . | . . . Machines Dismantled . | . . . Machines Sabotaged . | . . . Overloaded Fab Kills . | . . . Hacking | -11 -10 -10 --------- Run | Yrd Mat Sub Machines Accessed 6 | . 6 . Terminals 6 | . 6 . Fabricators . | . . . Repair Stations . | . . . Recycling Units . | . . . Scanalyzers . | . . . Garrison Access . | . . . Total Hacks 9 | . 9 . Successful 7 | . 7 . Failed 2 | . 2 . Catastrophic . | . . . Database Lockouts . | . . . Manual 9 | . 9 . Terminals 9 | . 9 . Fabricators . | . . . Repair Stations . | . . . Recycling Units . | . . . Scanalyzers . | . . . Garrison Access . | . . . Terminal Hacks 2 | . 2 . Robot Analysis 1 | . 1 . Recall Reinforcements 1 | . 1 . Fabricator Hacks . | . . . Repair Station Hacks . | . . . Recycling Unit Hacks . | . . . Scanalyzer . | . . . Garrison Access Hacks . | . . . Unauthorized Hacks 5 | . 5 . Terminals 5 | . 5 . Skim 5 | . 5 . Fabricators . | . . . Repair Stations . | . . . Recycling Units . | . . . Scanalyzers . | . . . Garrison Access . | . . . Data Cores Recovered . | . . . Used . | . . . Hacking Detections 2 | . 2 . Full Trace Events . | . . . Feedback Events . | . . . Feedback Blocked . | . . . Robot Schematics Acquired . | . . . Robots Built . | . . . Authchips . | . . . Time . | . . . Total Robot Build Rating . | . . . Part Schematics Acquired . | . . . Parts Built . | . . . Authchips . | . . . Time . | . . . Total Part Build Rating . | . . . Part Studies Acquired . | . . . Parts Repaired . | . . . Time . | . . . Parts Recycled . | . . . Recycled Matter . | . . . Retrieved Matter . | . . . Retrieved Components . | . . . Parts Scanalyzed . | . . . Part Schematics Acquired . | . . . Parts Damaged . | . . . Bothacking | -11 -10 -10 ------------ Run | Yrd Mat Sub Used RIF Installer . | . . . Robots Hacked . | . . . Non-combat . | . . . Combat . | . . . Robot Hacks Applied . | . . . Relay Couplers Released . | . . . Fabnet Peak Effective % . | . . . Robots Rewired . | . . . Allies Hacked . | . . . Hacks Repelled . | . . . Allies | -11 -10 -10 -------- Run | Yrd Mat Sub Total Allies . | . . . Largest Group . | . . . Highest-Rated Group . | . . . Highest-Rated Ally . | . . . Total Orders . | . . . Ally Attacks . | . . . Total Damage . | . . . Kills . | . . . Allies Corrupted . | . . . Allies Melted . | . . . Intel | -11 -10 -10 ------- Run | Yrd Mat Sub Active Infowar (turns) . | . . . Robot Analysis Total 1 | . 1 . Derelict Logs Recovered . | . . . Drone Launches . | . . . Drone Recoveries . | . . . Exploration | -11 -10 -10 ------------- Run | Yrd Mat Sub Turns Passed 1809 | 66 1312 431 Spaces Moved 619 | 39 460 120 Core 4 | 4 . . Treads 615 | 35 460 120 Legs . | . . . Wheels . | . . . Hover . | . . . Flight . | . . . Fastest Speed 50 | 50 160 240 Average Speed 201 | 148 175 318 Slowest Speed 320 | 160 240 320 Overloaded Moves . | . . . Propulsion Burnouts . | . . . Robots Hopped . | . . . Potential Cave-ins . | . . . Cave-ins Triggered . | . . . Exploration Rate (%) 29 | 3 71 14 Regions Visited 2 Branch Regions 1 Pre-discovered Areas . | . . . Known Exits Taken . | . . . Unknown Exits Taken 2 | 1 1 . Scrap Searched . | . . . Spaces Dug . | . . . Terrain Destroyed 63 | . 35 28 Melee . | . . . Projectile . | . . . AOE 63 | . 35 28 Terrain Rammed . | . . . Walls Destroyed . | . . . Machines Disabled . | . . . Actions | -11 -10 -10 --------- Run | Yrd Mat Sub Total 1086 | 44 895 147 Wait 384 | . 371 13 Move 617 | 38 459 120 Hop . | . . . Pick Up 11 | . 11 . Fast Attach 9 | 6 3 . Attach 1 | . 1 . Detach 1 | . 1 . Swap 4 | . 3 1 Drop 6 | . 6 . Fire 53 | . 40 13 Melee . | . . . Ram . | . . . Kick . | . . . Crush . | . . . Escape Stasis . | . . . Rewire . | . . . Trap . | . . . Miscellaneous . | . . . Route ------- -11/Scrapyard -10/Materials (discovered 6 exits: *Mat x3 / [*Min x2] / [*Sub]) -10/Subcaves (discovered 3 exits: *Mat x2 / [*Scr]) History --------- Turn | Location | Event 14 | -11/Scrapyard | Discovered new exit (range 15) 67 | -11/Scrapyard | Entered Materials 194 | -10/Materials | Discovered new exit (range 14) 243 | -10/Materials | Discovered new exit (range 16) 315 | -10/Materials | Build established: Mutant 542 | -10/Materials | Discovered new exit (range 8) 690 | -10/Materials | Discovered new exit (range 8) 890 | -10/Materials | Discovered new exit (range 14) 1175 | -10/Materials | Identified exit to Materials 1257 | -10/Materials | Learned Storage machine intel 1283 | -10/Materials | Learned 4 Recycling zone layouts 1300 | -10/Materials | Learned Storage emergency access door positions 1308 | -10/Materials | Learned Storage non-interactive machine intel 1324 | -10/Materials | Loaded intel: 23 non-interactive machine locations 1379 | -10/Materials | Entered Subcaves 1380 | -10/Subcaves | Approached by a straggling Scientist 1380 | -10/Subcaves | Identified exit to Materials 1407 | -10/Subcaves | Core integrity fell below 50% 1536 | -10/Subcaves | Scientist uncovered a shortcut to Scraptown 1780 | -10/Subcaves | Ambushed by Subdwellers from Twisted Machinery 1784 | -10/Subcaves | Core integrity fell below 20% 1810 | -10/Subcaves | Destroyed by PO-65R(R) with Subdweller Laser Last Messages --------------- 01417_ Subatomizers dissect the Sub. Power Source. 5V-B5A(c): "I think it's somewhere north of here" 01455_ Subatomizers dissect the Sub. Optics. 5V-B5A(c): "I think it's somewhere north of here" 01536_ 5V-B5A(c): "Hah, right again, there it is!" 01541_ 5V-B5A(c) exits level. 01652_ Destroyed Aluminum Leg. 01652_ G-34 Mercenary destroyed. 01655_ Y-45 Defender destroyed. 01660_ Subatomizers dissect the Heat Sink. 01662_ Heat Sink fries itself beyond repair. 01780_ BH-TKG(R) emerges from the Twisted Machinery. 01806_ Lgt. Treads destroyed. 01810_ 65-J6M(R): "NOSTUCKSUB!" Map ----- +----------------------------------------------------+ | | | | | | | | | | | | | | | ?????????????????????????????????????????????????? | | ?????????????????????????????????????????????????? | | ?????????????????????????????????????????????????? | | ?????????????????????????????????????????????????? | | ?????????????????????????????????????????????????? | | ?????????????????????????????????????????????????? | | ?????????????????????????????????????????????????? | | ?????????????????????????????????????????????????? | | ?????????????????????????????????????????????????? | | ?????????????????????????????????????????????????? | | ?????????????????????????????????????????????????? | | ?????????????????????????????????????????????????? | | ?????????????????????????????????????????????????? | | ?????????????????????????????????????????????????? | | ??????????????????????###????????????????????????? | | ?????????????????????## ######???????????????????? | | ????? """"?????##???# ######??########????? | | ???? R ## # #### # ###### | | ????" R @ # # | | ??????#" R | | ????????#" ######## # ##### | | ????????#### ###??????##########???# | | ???????????### ????????????????????????##### | | ?????????????###??????????????????????????????### | | ????????????????????????????????????????????????# | | ????????????????????????????????????????????????# | | ????????????????????????????????????????????????# | | ????????????????????????????????????????????????# | | ????????????????????????????????????????????????# | | ???????????????????????????????????????????????? | | ??????????????????????????????????????????????? | | ??????????????????????????????????????????????## | | ???????????????????????????????????????????????# | | ???????????????????????????????????????????????# | | ???????????????????????????????????????????????# | | ???????????????????????????????????????????????### | | ?????????????????????????????????????????????????? | | ?????????????????????????????????????????????????? | | ?????????????????????????????????????????????????? | | ?????????????????????????????????????????????????? | | ?????????????????????????????????????????????????? | | ?????????????????????????????????????????????????? | | ?????????????????????????????????????????????????? | +----------------------------------------------------+ Best States ------------- Heat Dissipation 39 Energy Generation 10 Energy Capacity 250 Matter Stores 300 Matter Capacity 300 Sight Range 16 Terrain Scan Density 10 Evasion (%) 40 Targeting Accuracy 5 Recoil Reduction 2 Item Schematics ----------------- None Robot Schematics ------------------ None Fabricated ------------ Nothing Repaired ---------- Nothing Studied --------- None Alien Tech Used ----------------- None Achievements -------------- None Challenges ------------ None Game ------ Seed BoltLauncherRegenerator Manual? 0 Play Time 00:06:27 Cumulative 539.8 hours Start 2025.11.14 @ 16:39:31 End 2025.11.14 @ 17:04:22 Sessions 1 Manual Loads 0 Difficulty Rogue Special Mode None Game No. 872 Rogue 717 Adventurer 148 Explorer 7 Win Type - Total 26 Types 20/1/4/1/0/0/0/0/0/0 Lore% 78 Gallery% 80 Achievement% 65 Wizard Run 0 Options --------- Layout 1 ASCII 0 Keyboard 0 Movement Numpad Keybinds 0 Fullscreen 2 Font 24/Smallcaps Map View 50x35 Zoom Use 0% Tactical HUD 1 Map Filters NONE Filters NONE Steam 1 RUN: 2a786560-e736-46bd-a269-b4746c3f32b5